bitfinex/quotes_BTCUSD_20250826
["timestamp","ask_amount","ask_price","bid_price","bid_amount"]
[1756197066847,0.60527593,110260.0,110250.0,0.18641589]
[1756197067043,0.78666537,110260.0,110250.0,0.18641589]
[1756197067243,0.78666537,110260.0,110250.0,0.18841589]
[1756197067456,0.78666537,110260.0,110250.0,0.18545589]
[1756197067875,0.78666537,110260.0,110250.0,0.18645589]
[1756197068603,0.78965537,110260.0,110250.0,0.18645589]
[1756197069007,0.78965537,110260.0,110250.0,0.18440589]
[1756197069835,0.78965537,110260.0,110250.0,0.003]
[1756197071102,1.83480533,110260.0,110250.0,0.003]
[1756197071333,1.84124431,110260.0,110250.0,0.003]
[1756197071567,1.91734965,110260.0,110250.0,0.003]
[1756197071788,1.88666229,110260.0,110250.0,0.001]
[1756197072602,0.18145527,110220.0,110210.0,0.2638405]
[1756197072829,0.60319593,110220.0,110210.0,0.26893667]
[1756197073659,0.60319593,110220.0,110210.0,0.19267968]
[1756197073660,0.7867312,110220.0,110210.0,0.19267968]
[1756197074470,0.60527593,110220.0,110210.0,0.19667968]
[1756197074715,0.7867312,110220.0,110210.0,0.19667968]
[1756197074940,0.7867312,110220.0,110210.0,0.20067968]
[1756197075342,0.7867312,110220.0,110210.0,0.19667968]
[1756197075686,0.7867312,110220.0,110210.0,0.19867968]
[1756197075884,0.7867312,110220.0,110210.0,0.19467968]
[1756197076484,0.7867312,110220.0,110210.0,0.19667968]
[1756197077606,1.1297212,110220.0,110210.0,0.00408617]
[1756197077829,1.1297212,110220.0,110210.0,0.1855579]
[1756197078061,1.1297212,110220.0,110210.0,0.00408617]
[1756197082608,0.52652527,110220.0,110210.0,0.00408617]
[1756197082821,1.1297212,110220.0,110210.0,0.00408617]
[1756197084206,0.52652527,110220.0,110210.0,0.00408617]
[1756197084416,1.1297212,110220.0,110210.0,0.00408617]
[1756197086471,1.1297212,110220.0,110210.0,0.1876879]
[1756197086648,1.1267312,110220.0,110210.0,0.1906779]
[1756197086914,1.1267312,110220.0,110210.0,0.00621617]
[1756197087312,0.34,110220.0,110210.0,0.1906779]
[1756197087748,1.1246512,110220.0,110210.0,0.1906779]
[1756197088162,1.1267012,110220.0,110210.0,0.00920617]
[1756197088560,1.1246512,110220.0,110210.0,0.1906779]
[1756197088972,1.1267012,110220.0,110210.0,0.1906779]
[1756197089408,1.1246512,110220.0,110210.0,0.1906779]
[1756197089836,0.94319593,110220.0,110210.0,0.1906779]
[1756197090054,1.1246512,110220.0,110210.0,0.1906779]
[1756197090264,1.1267012,110220.0,110210.0,0.1876879]
[1756197090490,0.94319593,110220.0,110210.0,0.1906779]
[1756197090667,1.1246512,110220.0,110210.0,0.1906779]
[1756197091298,0.94319593,110220.0,110210.0,0.1906779]
[1756197091517,0.60319593,110230.0,110220.0,0.18145527]
[1756197091725,0.19051799,110240.0,110230.0,0.1814388]
[1756197091929,0.19256799,110240.0,110230.0,0.1835688]
[1756197092151,0.53256799,110240.0,110230.0,0.1835688]
[1756197092391,0.52349688,110240.0,110230.0,0.1835688]
[1756197092601,0.52144688,110240.0,110230.0,0.1865588]
[1756197092827,0.62608688,110250.0,110240.0,0.18142235]
[1756197092828,0.18436198,110250.0,110240.0,0.18142235]
[1756197093056,1.12665791,110250.0,110240.0,0.18355235]
[1756197093301,1.1490452,110250.0,110230.0,0.1844288]
[1756197093531,0.34,110230.0,110220.0,0.19052803]
[1756197093752,0.94319593,110230.0,110220.0,0.28711005]
[1756197095620,0.19343227,110250.0,110230.0,0.18142457]
[1756197095828,0.60524593,110240.0,110230.0,0.18355457]
[1756197096239,0.78666828,110240.0,110230.0,0.18654457]
[1756197096764,0.78666828,110240.0,110230.0,0.18355457]
[1756197097570,0.78666828,110240.0,110230.0,0.18455457]
[1756197097961,0.78961828,110240.0,110230.0,0.001]
[1756197098171,0.78961828,110240.0,110230.0,0.00413]
[1756197099066,0.78961828,110240.0,110230.0,0.002]
[1756197099690,0.78961828,110240.0,110230.0,0.00413]
[1756197101219,0.78666828,110240.0,110230.0,0.00413]
[1756197101513,0.57812551,110240.0,110230.0,0.00413]
[1756197102890,0.58107551,110240.0,110230.0,0.002]
[1756197104128,0.58107551,110240.0,110230.0,0.00413]
[1756197104603,0.58107551,110240.0,110230.0,0.1855688]
[1756197105223,0.58107551,110240.0,110230.0,0.002]
[1756197106321,0.58107551,110240.0,110230.0,0.1834388]
[1756197106760,0.58107551,110240.0,110230.0,0.002]
[1756197107129,0.58107551,110240.0,110230.0,0.1834388]
[1756197107919,0.58107551,110240.0,110230.0,0.002]
[1756197109594,0.58107551,110240.0,110230.0,0.1834388]
[1756197109989,0.58107551,110240.0,110230.0,0.002]
[1756197110196,0.58107551,110240.0,110230.0,0.1834388]
[1756197111516,0.18642235,110240.0,110230.0,0.1855688]
[1756197111737,0.78961828,110240.0,110230.0,0.1834388]
[1756197112686,0.78961828,110240.0,110230.0,0.002]
[1756197112893,0.78961828,110240.0,110230.0,0.1834388]
[1756197114249,0.78961828,110240.0,110230.0,0.002]
[1756197119402,0.18642235,110240.0,110230.0,0.002]
[1756197119573,0.78961828,110240.0,110230.0,0.002]
[1756197121030,0.18642235,110240.0,110230.0,0.002]
[1756197121233,0.80658592,110240.0,110230.0,0.00396]
[1756197121436,0.78961828,110240.0,110230.0,0.00396]
[1756197121644,0.78666828,110240.0,110230.0,0.00396]
[1756197122045,0.78971828,110240.0,110230.0,0.00396]
[1756197122255,0.80669138,110240.0,110230.0,0.00396]
[1756197122465,0.78666828,110240.0,110230.0,0.1885388]
[1756197122680,0.78666828,110240.0,110230.0,0.1853988]
[1756197123290,0.78971828,110240.0,110230.0,0.00396]
[1756197124125,0.18347235,110240.0,110230.0,0.1853988]
[1756197124333,0.52140589,110250.0,110240.0,0.18142235]
[1756197124543,0.35697316,110250.0,110240.0,0.18652235]
[1756197124768,1.14672498,110250.0,110230.0,0.1865788]
[1756197124975,0.60319593,110240.0,110230.0,0.1865788]
[1756197125186,0.78976828,110240.0,110230.0,0.1853988]
[1756197125359,0.78976828,110240.0,110230.0,0.1834388]
[1756197125564,0.78976828,110240.0,110230.0,0.1824388]
[1756197126700,0.78976828,110240.0,110230.0,0.1814388]
[1756197127136,0.18657235,110240.0,110230.0,0.1814388]
[1756197127342,0.78976828,110240.0,110230.0,0.1814388]
[1756197127979,0.78976828,110240.0,110230.0,0.1824388]
[1756197128195,0.52140589,110250.0,110240.0,0.18142235]
[1756197128470,1.16085206,110250.0,110240.0,0.18142235]
[1756197128687,0.55765613,110250.0,110240.0,0.18338235]
[1756197128896,0.56070613,110250.0,110240.0,0.18338235]
[1756197129067,1.16390206,110250.0,110240.0,0.18338235]
[1756197129273,1.16390206,110250.0,110230.0,0.1855788]
[1756197129499,0.60319593,110240.0,110230.0,0.1855788]
[1756197129702,0.60319593,110240.0,110230.0,0.1865388]
[1756197129912,0.52240589,110250.0,110240.0,0.18142235]
[1756197130118,1.12770182,110250.0,110240.0,0.18142235]
[1756197130256,1.13075182,110250.0,110240.0,0.18142235]
[1756197131273,0.52450589,110250.0,110240.0,0.18338235]
[1756197131528,1.12670182,110250.0,110240.0,0.18338235]
[1756197131732,0.52655589,110250.0,110240.0,0.18338235]
[1756197131926,1.12975182,110250.0,110240.0,0.18142235]
[1756197132308,0.52655589,110250.0,110240.0,0.18142235]
[1756197132523,1.12975182,110250.0,110240.0,0.18338235]
[1756197132732,1.12975182,110250.0,110230.0,0.1845788]
[1756197132932,0.60319593,110240.0,110230.0,0.1845788]
[1756197133167,0.60319593,110240.0,110230.0,0.1865388]
[1756197134381,0.60319593,110240.0,110230.0,0.1875388]
[1756197135357,0.0021,110240.0,110230.0,0.0061]
[1756197135564,0.78671828,110240.0,110230.0,0.1843988]
[1756197135775,0.60529593,110240.0,110230.0,0.1875388]
[1756197136507,0.60319593,110240.0,110230.0,0.1875388]
[1756197137642,0.60319593,110240.0,110230.0,0.1885388]
[1756197141057,0.60834593,110240.0,110230.0,0.1853988]
[1756197141261,0.78976828,110240.0,110230.0,0.1834388]
[1756197146697,1.12976828,110240.0,110230.0,0.1834388]
[1756197148402,1.12976828,110240.0,110230.0,0.002]
[1756197148751,1.12976828,110240.0,110230.0,0.1834388]
[1756197150163,1.12976828,110240.0,110230.0,0.002]
[1756197150676,1.12976828,110240.0,110230.0,0.1834388]
[1756197151267,0.52657235,110240.0,110230.0,0.1834388]
[1756197151472,1.12976828,110240.0,110230.0,0.1834388]
[1756197153511,0.52657235,110240.0,110230.0,0.1834388]
[1756197153620,0.94834593,110240.0,110230.0,0.1855388]
[1756197153825,0.34,110240.0,110230.0,0.1885988]
[1756197154043,0.94319593,110240.0,110230.0,0.1885988]
[1756197154462,0.94410493,110240.0,110230.0,0.1885988]
[1756197155579,1.12552728,110240.0,110230.0,0.1885988]
[1756197155988,1.12748728,110240.0,110230.0,0.1834388]
[1756197156180,0.52733135,110240.0,110230.0,0.1834388]
[1756197156386,1.13052728,110240.0,110230.0,0.1855388]
[1756197156803,0.52733135,110240.0,110230.0,0.1855388]
[1756197157004,1.13052728,110240.0,110230.0,0.1855388]
[1756197158886,1.12961828,110240.0,110230.0,0.1855388]
[1756197159141,1.12961828,110240.0,110230.0,0.1834388]
[1756197159468,1.12961828,110240.0,110230.0,0.002]
[1756197160301,1.73281421,110240.0,110230.0,0.002]
[1756197162645,1.12961828,110240.0,110230.0,0.1834388]
[1756197164181,0.34,110240.0,110230.0,0.1885988]
[1756197164353,0.94319593,110240.0,110230.0,0.1885988]
[1756197165446,1.12657828,110240.0,110230.0,0.1855388]
[1756197165649,1.12961828,110240.0,110230.0,0.1834388]
[1756197166232,1.12961828,110240.0,110230.0,0.1855388]
[1756197168296,1.12961828,110240.0,110230.0,0.002]
[1756197169962,1.12961828,110240.0,110230.0,0.1834388]
[1756197170987,0.52338235,110240.0,110230.0,0.1855388]
[1756197171207,0.34,110240.0,110230.0,0.1885988]
[1756197171621,1.12961828,110240.0,110230.0,0.1834388]
[1756197172237,1.12961828,110240.0,110230.0,0.1855388]
[1756197173149,1.12657828,110240.0,110230.0,0.1855388]
[1756197173607,0.78657828,110240.0,110230.0,0.1855388]
[1756197173833,0.78961828,110240.0,110230.0,0.1834388]
[1756197174229,0.78657828,110240.0,110230.0,0.1855388]
[1756197176132,0.78465517,110240.0,110230.0,0.1886588]
[1756197178039,3.689e-05,110240.0,110230.0,0.1886588]
[1756197178239,0.78461828,110240.0,110230.0,0.1886588]
[1756197178473,0.18140589,110250.0,110230.0,0.1886588]
[1756197178727,0.18140589,110250.0,110240.0,0.18454235]
[1756197178728,1.12460182,110250.0,110240.0,0.18454235]
[1756197178950,1.12576182,110250.0,110240.0,0.18652235]
[1756197179289,1.12460182,110250.0,110240.0,0.18652235]
[1756197179998,0.52140589,110250.0,110240.0,0.18652235]
[1756197180204,1.12460182,110250.0,110240.0,0.18652235]
[1756197180567,0.22916884,110260.0,110250.0,0.18140589]
[1756197180568,0.60319593,110260.0,110250.0,0.18140589]
[1756197180740,0.60319593,110260.0,110250.0,0.18238589]
[1756197180741,0.78458537,110260.0,110250.0,0.18238589]
[1756197180971,0.78574537,110260.0,110250.0,0.18550589]
[1756197181174,1.12890537,110260.0,110240.0,0.27600437]
[1756197181403,0.78460182,110250.0,110240.0,0.18142235]
[1756197181595,0.78678182,110250.0,110240.0,0.18340235]
[1756197182012,0.18358589,110250.0,110240.0,0.18142235]
[1756197182209,0.78678182,110250.0,110240.0,0.18142235]
[1756197182349,0.78678182,110250.0,110240.0,0.18242235]
[1756197182553,0.78578182,110250.0,110240.0,0.18242235]
[1756197182725,0.78385905,110250.0,110240.0,0.18242235]
[1756197182950,0.78385905,110250.0,110240.0,0.18142235]
[1756197184222,0.78385905,110250.0,110240.0,0.18340235]
[1756197184638,0.78385905,110250.0,110240.0,0.18640235]
[1756197185104,0.78385905,110250.0,110240.0,0.005]
[1756197185336,0.78385905,110250.0,110240.0,0.18642235]
[1756197186223,0.78385905,110250.0,110240.0,0.005]
[1756197186443,0.78699905,110250.0,110240.0,0.005]
[1756197186671,1.12699905,110250.0,110240.0,0.005]
[1756197188771,0.34314,110250.0,110240.0,0.005]
[1756197188986,1.12774182,110250.0,110240.0,0.005]
[1756197190121,1.12672182,110250.0,110240.0,0.18840235]
[1756197190336,0.94319593,110250.0,110240.0,0.19152235]
[1756197190556,0.34,110250.0,110240.0,0.19152235]
[1756197190736,0.60319593,110250.0,110240.0,0.19152235]
[1756197191152,0.18138944,110260.0,110240.0,0.18852235]
[1756197191405,0.52143718,110260.0,110250.0,0.18140589]
[1756197191618,0.18148589,110250.0,110240.0,0.18754235]
[1756197191825,0.18140589,110250.0,110240.0,0.18752235]
[1756197192002,0.52143718,110260.0,110240.0,0.18752235]
[1756197192409,0.60319593,110250.0,110240.0,0.18752235]
[1756197192619,0.78460182,110250.0,110240.0,0.18752235]
[1756197192867,0.60319593,110250.0,110240.0,0.18652235]
[1756197193259,0.78460182,110250.0,110240.0,0.18652235]
[1756197194746,0.78460182,110250.0,110240.0,0.18752235]
[1756197194957,0.18140589,110250.0,110240.0,0.18752235]
[1756197195163,0.78460182,110250.0,110240.0,0.18852235]
[1756197195659,0.78775182,110250.0,110240.0,0.002]
[1756197196258,0.78468182,110250.0,110240.0,0.002]
[1756197198141,0.78775182,110250.0,110240.0,0.002]
[1756197199476,0.78468182,110250.0,110240.0,0.002]
[1756197202787,0.78775182,110250.0,110240.0,0.002]
[1756197202988,0.78468182,110250.0,110240.0,0.002]
[1756197204206,0.78775182,110250.0,110240.0,0.002]
[1756197204413,1.73094775,110250.0,110240.0,0.002]
[1756197204769,1.12775182,110250.0,110240.0,0.002]
[1756197206185,1.12468182,110250.0,110240.0,0.002]
[1756197206603,1.12460182,110250.0,110240.0,0.0073]
[1756197206822,1.12657182,110250.0,110240.0,0.0073]
[1756197207451,1.12657182,110250.0,110240.0,0.18872235]
[1756197207670,1.12460182,110250.0,110240.0,0.18872235]
[1756197207877,0.52140589,110250.0,110240.0,0.18872235]
[1756197208082,1.12460182,110250.0,110240.0,0.18872235]
[1756197210086,0.60319593,110250.0,110240.0,0.18872235]
[1756197210730,0.78460182,110250.0,110240.0,0.18872235]
[1756197212418,0.78653182,110250.0,110240.0,0.18872235]
[1756197212632,0.78961182,110250.0,110240.0,0.002]
[1756197213003,0.78653182,110250.0,110240.0,0.002]
[1756197213700,0.78961182,110250.0,110240.0,0.002]
[1756197214056,0.60526494,110250.0,110240.0,0.002]
[1756197218324,0.94526494,110250.0,110240.0,0.002]
[1756197218545,1.69087845,110250.0,110240.0,0.002]
[1756197219174,1.69087845,110250.0,110240.0,0.001]
[1756197219388,1.70782422,110250.0,110240.0,0.001]
[1756197219935,0.18145527,110220.0,110210.0,0.19372531]
[1756197220143,0.7846512,110220.0,110210.0,0.19584531]
[1756197220595,0.18145527,110220.0,110210.0,0.19584531]
[1756197220742,0.7846512,110220.0,110210.0,0.19584531]
[1756197221139,0.7846512,110220.0,110210.0,0.19593148]
[1756197221343,0.18145527,110220.0,110210.0,0.19593148]
[1756197221543,0.7846512,110220.0,110210.0,0.19793148]
[1756197221758,0.18145527,110220.0,110210.0,0.19993148]
[1756197226978,0.7846512,110220.0,110210.0,0.19993148]
[1756197227831,0.7847412,110220.0,110210.0,0.19993148]
[1756197228772,0.7846512,110220.0,110210.0,0.19993148]
[1756197229217,0.7846512,110220.0,110210.0,0.1908579]
[1756197229455,0.81493364,110220.0,110210.0,0.1908579]
[1756197229645,0.81502364,110220.0,110210.0,0.1908579]
[1756197230446,0.81502364,110220.0,110210.0,0.1855579]
[1756197232166,0.81502364,110220.0,110210.0,0.1887379]
[1756197232404,0.81502364,110220.0,110210.0,0.1908579]
[1756197235093,0.21182771,110220.0,110210.0,0.1908579]
[1756197235287,0.81502364,110220.0,110210.0,0.1908579]
[1756197238084,0.61355564,110220.0,110210.0,0.1908579]
[1756197238287,0.79501091,110220.0,110210.0,0.1908579]
[1756197240137,0.79501091,110220.0,110210.0,0.1876779]
[1756197240343,0.18145527,110220.0,110210.0,0.1909079]
[1756197240543,0.7865412,110220.0,110210.0,0.1909079]
[1756197241220,0.34,110230.0,110220.0,0.18145527]
[1756197241418,1.12463473,110230.0,110220.0,0.18348527]
[1756197241582,1.12463473,110230.0,110220.0,0.18671527]
[1756197242179,1.12661473,110230.0,110220.0,0.18671527]
[1756197242589,1.12463473,110230.0,110220.0,0.18671527]
[1756197242894,1.12662473,110230.0,110220.0,0.18671527]
[1756197243107,0.5234288,110230.0,110220.0,0.18771527]
[1756197243480,0.34,110230.0,110220.0,0.18871527]
[1756197243671,0.5214388,110230.0,110220.0,0.18871527]
[1756197243810,0.5234388,110230.0,110220.0,0.18871527]
[1756197245486,0.34,110230.0,110220.0,0.18871527]
[1756197247103,0.25470288,110250.0,110230.0,0.18142709]
[1756197247331,0.34,110240.0,110230.0,0.18142709]
[1756197247536,0.34,110240.0,110230.0,0.18668709]
[1756197247766,0.78460182,110250.0,110240.0,0.18142235]
[1756197247976,0.78658182,110250.0,110240.0,0.18345235]
[1756197248195,1.12658182,110250.0,110240.0,0.18345235]
[1756197248419,1.12658182,110250.0,110240.0,0.18668235]
[1756197248639,1.15161232,110250.0,110240.0,0.18668235]
[1756197248869,0.34198,110250.0,110240.0,0.18668235]
[1756197249104,1.23535484,110260.0,110250.0,0.18140589]
[1756197249382,1.23733484,110260.0,110250.0,0.18140589]
[1756197249600,0.002,110250.0,110240.0,0.18465235]
[1756197249819,0.002,110250.0,110240.0,0.18668235]
[1756197250037,1.23535484,110260.0,110240.0,0.18668235]
[1756197250472,1.26108156,110260.0,110240.0,0.18668235]
[1756197250619,1.60108156,110260.0,110250.0,0.18140589]
[1756197250822,1.57734484,110260.0,110250.0,0.18140589]
[1756197251035,1.57734484,110260.0,110250.0,0.17940589]
[1756197251253,1.57734484,110260.0,110240.0,0.18465235]
[1756197251469,0.60319593,110250.0,110240.0,0.18465235]
[1756197251692,0.60319593,110250.0,110240.0,0.18668235]
[1756197253213,0.94319593,110260.0,110250.0,0.18140589]
[1756197253423,0.34,110260.0,110250.0,0.18666589]
[1756197254745,0.94319593,110260.0,110250.0,0.18666589]
[1756197255194,0.94319593,110260.0,110250.0,0.18766589]
[1756197256605,0.60319593,110260.0,110250.0,0.18766589]
[1756197257065,0.78657537,110260.0,110250.0,0.18766589]
[1756197257500,0.78657537,110260.0,110250.0,0.18866589]
[1756197257501,0.00199,110260.0,110250.0,0.18866589]
[1756197257763,0.60518593,110260.0,110250.0,0.18866589]
[1756197258262,0.21656668,110270.0,110260.0,0.18138944]
[1756197258510,0.00199,110270.0,110260.0,0.18341944]
[1756197258732,0.18336299,110270.0,110260.0,0.18664944]
[1756197258986,0.20869118,110270.0,110260.0,0.18138944]
[1756197259224,0.18336299,110270.0,110260.0,0.18138944]
[1756197259458,0.18336299,110270.0,110260.0,0.18341944]
[1756197259459,1.12655892,110270.0,110260.0,0.18341944]
[1756197259681,1.12755892,110270.0,110260.0,0.18341944]
[1756197259893,1.12755892,110270.0,110250.0,0.18463589]
[1756197260632,0.60319593,110260.0,110250.0,0.18463589]
[1756197260944,0.60319593,110260.0,110250.0,0.18666589]
[1756197261822,0.52137299,110270.0,110260.0,0.18138944]
[1756197261981,1.12456892,110270.0,110260.0,0.18341944]
[1756197262216,0.52137299,110270.0,110250.0,0.18463589]
[1756197262433,0.60319593,110260.0,110250.0,0.18463589]
[1756197262832,0.60319593,110260.0,110250.0,0.18666589]
[1756197263017,0.78458537,110260.0,110250.0,0.18666589]
[1756197263306,0.78458537,110260.0,110250.0,0.18766589]
[1756197263506,0.18138944,110260.0,110250.0,0.18766589]
[1756197263671,0.78458537,110260.0,110250.0,0.18766589]
[1756197263873,0.78458537,110260.0,110250.0,0.18866589]
[1756197266714,0.52138944,110260.0,110250.0,0.18866589]
[1756197266921,1.12458537,110260.0,110250.0,0.18866589]
[1756197268248,1.12758537,110260.0,110250.0,0.002]
[1756197268491,1.12654537,110260.0,110250.0,0.18340589]
[1756197269476,1.12654537,110260.0,110250.0,0.002]
[1756197270530,1.12654537,110260.0,110250.0,0.18340589]
[1756197271343,1.12654537,110260.0,110250.0,0.002]
[1756197271551,1.12654537,110260.0,110250.0,0.00738]
[1756197271696,1.12654537,110260.0,110250.0,0.002]
[1756197272849,0.52334944,110260.0,110250.0,0.002]
[1756197273047,1.12654537,110260.0,110250.0,0.002]
[1756197274243,1.12955537,110260.0,110250.0,0.002]
[1756197275482,1.12654537,110260.0,110250.0,0.002]
[1756197276689,0.52138944,110260.0,110250.0,0.18878589]
[1756197276915,1.12458537,110260.0,110250.0,0.18878589]
[1756197277117,1.12654537,110260.0,110250.0,0.18878589]
[1756197277327,1.12654537,110260.0,110250.0,0.00738]
[1756197277536,1.12654537,110260.0,110250.0,0.00416]
[1756197277741,1.12654537,110260.0,110250.0,0.002]
[1756197277946,0.52334944,110260.0,110250.0,0.18556589]
[1756197278146,1.12654537,110260.0,110250.0,0.002]
[1756197279684,1.12654537,110260.0,110250.0,0.18340589]
[1756197280782,1.12654537,110260.0,110250.0,0.002]
[1756197281695,1.12955537,110260.0,110250.0,0.002]
[1756197282330,1.13801928,110260.0,110250.0,0.002]
[1756197283165,1.17444595,110260.0,110250.0,0.002]
[1756197284490,1.26590797,110260.0,110250.0,0.002]
[1756197285093,0.66271204,110260.0,110250.0,0.002]
[1756197285297,1.26590797,110260.0,110250.0,0.002]
[1756197285758,1.24686297,110260.0,110250.0,0.002]
[1756197285953,1.2722427,110260.0,110250.0,0.002]
[1756197286408,1.27223463,110260.0,110250.0,0.002]
[1756197286628,1.87543056,110260.0,110250.0,0.002]
[1756197286849,1.92685169,110260.0,110250.0,0.001]
[1756197287060,1.32365576,110260.0,110250.0,0.001]
[1756197287249,1.32565576,110260.0,110250.0,0.001]
[1756197287967,0.52142235,110240.0,110230.0,0.00322]
[1756197288261,1.1330755,110240.0,110230.0,0.00538]
[1756197288499,1.13503273,110240.0,110230.0,0.00538]
[1756197290126,1.13603273,110240.0,110230.0,0.00216]
[1756197290365,0.1814388,110230.0,110220.0,0.1906132]
[1756197290594,0.79308918,110230.0,110220.0,0.1927732]
[1756197290820,0.79308918,110230.0,110220.0,0.00224617]
[1756197291029,0.18989325,110230.0,110220.0,0.00546617]
[1756197291204,0.79504918,110230.0,110220.0,0.00546617]
[1756197291444,0.79504918,110230.0,110220.0,0.00646617]
[1756197292172,0.79504918,110230.0,110220.0,0.00108617]
[1756197292383,0.79504918,110230.0,110220.0,0.00208617]
[1756197293130,0.78659473,110230.0,110220.0,0.00208617]
[1756197293349,0.1814388,110230.0,110220.0,0.18892144]
[1756197293558,0.78463473,110230.0,110220.0,0.18892144]
[1756197293759,0.78659473,110230.0,110220.0,0.18892144]
[1756197293970,0.2064982,110230.0,110220.0,0.18892144]
[1756197294175,0.80969413,110230.0,110220.0,0.00746617]
[1756197294585,0.80969413,110230.0,110220.0,0.18892144]
[1756197294794,0.78463473,110230.0,110220.0,0.18892144]
[1756197295244,0.81047699,110230.0,110220.0,0.18892144]
[1756197295896,0.62903819,110230.0,110220.0,0.18892144]
[1756197296066,0.60319593,110230.0,110220.0,0.18892144]
[1756197296687,1.12462179,110240.0,110230.0,0.1814388]
[1756197296852,1.13307259,110240.0,110230.0,0.00527]
[1756197297280,1.13307259,110240.0,110230.0,0.1867088]
[1756197298599,0.52987666,110240.0,110230.0,0.1867088]
[1756197298806,1.13307294,110240.0,110230.0,0.1867088]
[1756197299255,1.13407294,110240.0,110230.0,0.1867088]
[1756197299880,0.53087701,110240.0,110230.0,0.1867088]
[1756197300092,1.13307294,110240.0,110230.0,0.1867088]
[1756197300298,1.13407294,110240.0,110230.0,0.1867088]
[1756197300714,1.13307294,110240.0,110230.0,0.1867088]
[1756197300921,1.12462179,110240.0,110230.0,0.1867088]
[1756197301122,1.13307368,110240.0,110230.0,0.1867088]
[1756197301303,1.13307368,110240.0,110230.0,0.1877088]
[1756197301919,1.13797368,110240.0,110230.0,0.001]
[1756197302127,1.74116961,110240.0,110230.0,0.001]
[1756197302531,1.74116961,110240.0,110230.0,0.002]
[1756197304107,1.74117043,110240.0,110230.0,0.002]
[1756197304444,1.73271772,110240.0,110230.0,0.002]
[1756197304649,1.74117035,110240.0,110230.0,0.002]
[1756197305060,1.79866967,110240.0,110230.0,0.002]
[1756197305297,1.13307442,110240.0,110230.0,0.002]
[1756197305501,1.13512442,110240.0,110230.0,0.002]
[1756197305785,0.34845263,110240.0,110230.0,0.1887088]
[1756197306690,0.00845263,110240.0,110230.0,0.1887088]
[1756197307400,0.00845263,110240.0,110230.0,0.28017082]
[1756197307848,0.00845263,110240.0,110230.0,0.9086383]
[1756197308069,0.78458599,110260.0,110250.0,0.18140589]
[1756197308294,0.78458599,110260.0,110250.0,0.18667589]
[1756197308295,0.61165268,110260.0,110250.0,0.18667589]
[1756197308503,1.13304212,110260.0,110250.0,0.18667589]
[1756197308957,1.13509212,110260.0,110250.0,0.18667589]
[1756197309168,1.13509212,110260.0,110250.0,0.00202]
[1756197309375,1.13609212,110260.0,110250.0,0.00527]
[1756197310235,1.13809212,110260.0,110250.0,0.00527]
[1756197310419,1.13809212,110260.0,110250.0,0.18667589]
[1756197311053,0.53289619,110260.0,110250.0,0.00527]
[1756197311258,1.13509212,110260.0,110250.0,0.00527]
[1756197311639,0.18140589,110250.0,110240.0,0.00325]
[1756197311847,0.79510857,110250.0,110240.0,0.18669235]
[1756197312653,0.79510857,110250.0,110230.0,0.28522276]
[1756197313418,0.19191264,110250.0,110240.0,0.001]
[1756197313627,0.19191211,110250.0,110240.0,0.18344235]
[1756197313835,0.19191211,110250.0,110240.0,0.00202]
[1756197314085,0.19191211,110250.0,110240.0,0.18344235]
[1756197314257,0.19191211,110250.0,110240.0,0.00202]
[1756197314492,0.1919106,110250.0,110240.0,0.00302]
[1756197314722,0.79510653,110250.0,110240.0,0.18444235]
[1756197315551,0.79510653,110250.0,110240.0,0.00302]
[1756197315755,0.79510653,110250.0,110240.0,0.00402]
[1756197315958,0.79510653,110250.0,110240.0,0.18544235]
[1756197316322,0.79510653,110250.0,110240.0,0.18869235]
[1756197318141,0.61165064,110250.0,110240.0,0.18869235]
[1756197318350,0.34,110260.0,110250.0,0.18140589]
[1756197318561,0.95164785,110260.0,110250.0,0.18342589]
[1756197318792,0.00845192,110260.0,110250.0,0.27813791]
[1756197319957,0.00945192,110260.0,110250.0,0.27813791]
[1756197320086,0.79303729,110260.0,110250.0,0.27813791]
[1756197320285,0.78458537,110260.0,110250.0,0.27813791]
[1756197320495,0.78663537,110260.0,110250.0,0.002]
[1756197320688,0.79598398,110260.0,110250.0,0.002]
[1756197321296,0.79508398,110260.0,110250.0,0.002]
[1756197321666,0.78663537,110260.0,110250.0,0.004]
[1756197323969,0.78753537,110260.0,110250.0,0.004]
[1756197324630,0.78663537,110260.0,110250.0,0.004]
[1756197324848,0.78956537,110260.0,110250.0,0.004]
[1756197325299,0.78663537,110260.0,110250.0,0.004]
[1756197326937,0.78958537,110260.0,110250.0,0.004]
[1756197327146,1.12958537,110260.0,110250.0,0.004]
[1756197327301,1.13802888,110260.0,110250.0,0.004]
[1756197327911,1.13802888,110260.0,110250.0,0.002]
[1756197329009,0.18142235,110240.0,110230.0,0.19370731]
[1756197329290,0.60319593,110240.0,110230.0,0.28408933]
[1756197330022,0.78461828,110240.0,110230.0,0.28728933]
[1756197330386,0.78461828,110240.0,110230.0,0.28021739]
[1756197330613,0.78461828,110240.0,110230.0,0.28221739]
[1756197333657,0.54174762,110240.0,110230.0,0.28221739]
[1756197333879,0.78461828,110240.0,110230.0,0.28221739]
[1756197334328,0.60319593,110240.0,110230.0,0.28221739]
[1756197334552,0.78461828,110240.0,110230.0,0.28221739]
[1756197334769,0.18142235,110240.0,110230.0,0.28221739]
[1756197335541,0.78461674,110250.0,110230.0,0.28221739]
[1756197335733,0.79308222,110250.0,110230.0,0.28221739]
[1756197335931,0.18142235,110240.0,110230.0,0.28221739]
[1756197336337,0.18142235,110240.0,110230.0,0.28021739]
[1756197336795,0.18142235,110240.0,110230.0,0.28121739]
[1756197337241,0.18142235,110240.0,110230.0,0.28021739]
[1756197337985,0.78665828,110240.0,110230.0,0.27701739]
[1756197338202,0.78665828,110240.0,110230.0,0.28021739]
[1756197338549,0.78665828,110240.0,110230.0,0.09878202]
[1756197338993,1.12959828,110240.0,110230.0,0.002]
[1756197339168,1.13806576,110240.0,110230.0,0.002]
[1756197339553,1.13512576,110240.0,110230.0,0.004]
[1756197339770,0.53192983,110240.0,110230.0,0.004]
[1756197339999,1.13512576,110240.0,110230.0,0.004]
[1756197340221,1.17218318,110240.0,110230.0,0.004]
[1756197342420,1.1637157,110240.0,110230.0,0.004]
[1756197342867,1.17217531,110240.0,110230.0,0.004]
[1756197345309,0.56897938,110240.0,110230.0,0.004]
[1756197345516,1.17217531,110240.0,110230.0,0.004]
[1756197345758,0.1814388,110230.0,110220.0,0.18154064]
[1756197345955,0.78463473,110230.0,110220.0,0.18686064]
[1756197347372,0.60319593,110230.0,110220.0,0.18686064]
[1756197347580,0.1814388,110230.0,110220.0,0.18686064]
[1756197349146,0.1814388,110230.0,110220.0,0.18786064]
[1756197350233,0.78463473,110230.0,110220.0,0.18786064]
[1756197350464,0.60319593,110230.0,110220.0,0.18786064]